bitfinex/quotes_ETHUSD_20251107
["timestamp","ask_amount","ask_price","bid_price","bid_amount"]
[1762534851344,3.02197306,3309.1,3308.7,0.001]
[1762534851567,0.1824,3309.8,3308.7,0.4525]
[1762534851975,3.02150243,3309.7,3309.1,3.02196902]
[1762534852147,0.1824,3309.8,3308.7,0.4525]
[1762534852342,3.02158035,3309.6,3308.7,3.82231782]
[1762534852578,3.02142188,3309.7,3308.7,0.79998489]
[1762534852579,3.0216117,3309.5,3308.7,0.79998489]
[1762534852875,3.02157157,3309.6,3308.7,0.001]
[1762534853074,0.4736,3309.7,3309.1,3.02194746]
[1762534853075,3.02144004,3309.7,3309.1,3.02194746]
[1762534853282,3.02152594,3309.6,3309.0,3.02202404]
[1762534853483,3.0214889,3309.7,3309.0,3.02205027]
[1762534853684,1.442112,3309.8,3309.2,3.02181619]
[1762534853847,3.20373242,3309.8,3309.2,3.02181619]
[1762534854351,1.442112,3309.8,3309.1,3.22090812]
[1762534854553,1.442112,3309.8,3309.1,0.199]
[1762534854554,0.1824,3309.8,3309.1,0.199]
[1762534854754,3.02136243,3309.8,3309.1,3.22090032]
[1762534854958,3.02136243,3309.8,3309.1,0.199]
[1762534855269,3.20366955,3309.9,3309.2,3.02181688]
[1762534855479,3.0214587,3309.7,3309.1,3.22094761]
[1762534855657,0.1824,3309.9,3309.1,0.199]
[1762534855858,3.02114846,3310.0,3309.3,3.02174888]
[1762534856184,0.002,3310.2,3309.1,0.199]
[1762534856346,3.02140575,3309.8,3309.2,3.02182191]
[1762534856551,0.4756,3310.2,3309.1,0.199]
[1762534856745,3.02133059,3309.8,3309.1,0.199]
[1762534857054,3.02133059,3309.8,3308.7,0.001]
[1762534857055,1.259712,3309.6,3308.7,0.001]
[1762534857262,0.1824,3308.9,3308.7,0.001]
[1762534857463,11.37316758,3308.8,3308.7,0.001]
[1762534857672,6.21332707,3308.8,3308.7,0.001]
[1762534860986,0.1824,3309.4,3308.7,0.001]
[1762534861303,3.2036551,3309.9,3309.1,3.02189376]
[1762534861607,0.002,3310.2,3309.8,0.199]
[1762534861894,0.002,3310.2,3310.1,3.02105676]
[1762534862210,0.002,3310.2,3310.1,3.05126732]
[1762534862378,0.007,3310.9,3310.5,3.02069173]
[1762534862720,0.007,3310.9,3310.5,3.42619573]
[1762534863013,0.1893,3310.9,3309.8,0.6596]
[1762534863162,0.007,3310.9,3309.8,0.199]
[1762534863362,0.007,3310.9,3310.8,4.68563402]
[1762534863564,0.005,3311.9,3310.8,4.68563402]
[1762534863565,0.1873,3311.9,3310.8,0.4685634]
[1762534863763,3.01994564,3311.4,3310.4,0.4606]
[1762534863958,0.4807,3311.8,3310.5,3.02067546]
[1762534863959,3.02003512,3311.3,3310.5,3.02067546]
[1762534864167,0.4807,3311.8,3310.4,0.4606]
[1762534864476,3.01980699,3311.5,3310.8,3.02036459]
[1762534864675,3.01971249,3311.6,3310.8,3.02036459]
[1762534864913,3.01980569,3311.5,3310.8,3.02040172]
[1762534865115,3.01971396,3311.6,3310.8,3.02035213]
[1762534865409,3.0197768,3311.6,3310.8,3.02035213]
[1762534865613,3.0197768,3311.6,3310.5,3.02060589]
[1762534865614,3.01971661,3311.6,3310.5,3.02060589]
[1762534865839,3.01971661,3311.6,3310.9,3.0203183]
[1762534865995,1.447012,3311.9,3311.0,3.02022855]
[1762534866347,1.447012,3311.9,3310.8,3.02033893]
[1762534866639,0.005,3311.9,3311.3,3.01993566]
[1762534866940,0.005,3311.9,3310.8,0.38292507]
[1762534866941,3.019506,3311.8,3310.8,0.38292507]
[1762534867220,3.01957331,3311.8,3311.1,0.1961]
[1762534867402,0.005,3311.9,3311.1,0.1961]
[1762534867610,0.005,3311.9,3310.4,1.720312]
[1762534867611,3.01993591,3311.4,3310.4,1.720312]
[1762534867904,0.4807,3311.8,3310.4,0.4606]
[1762534868080,0.005,3311.9,3310.6,3.02060049]
[1762534868408,3.01985298,3311.5,3310.8,3.02033324]
[1762534868583,0.4807,3311.8,3310.6,3.0205374]
[1762534868784,0.4807,3311.8,3309.7,0.4606]
[1762534868785,3.02049765,3310.8,3309.7,0.4606]
[1762534868985,1.259712,3311.6,3309.1,0.005]
[1762534869188,0.1823,3310.9,3309.3,0.4606]
[1762534869385,3.0214616,3309.7,3309.2,0.1961]
[1762534869612,3.02161559,3309.5,3309.1,0.005]
[1762534869831,3.0214868,3309.7,3309.1,0.005]
[1762534869989,3.02170519,3309.4,3309.1,0.005]
[1762534870320,0.1823,3309.8,3309.1,0.005]
[1762534870486,3.02187839,3309.2,3309.1,0.005]
[1762534870687,3.32406623,3309.2,3309.1,0.005]
[1762534871035,5.06447823,3309.2,3309.1,0.005]
[1762534871330,5.06447823,3309.2,3308.7,0.001]
[1762534871331,3.02224371,3308.8,3308.7,0.001]
[1762534871528,4.28195571,3308.8,3308.7,0.001]
[1762534871713,4.76265571,3308.8,3308.7,0.001]
[1762534871879,5.96224231,3308.8,3308.7,0.001]
[1762534872390,3.02260911,3308.4,3308.3,0.001]
[1762534872597,3.02279185,3308.2,3308.1,0.001]
[1762534872780,3.02279185,3308.2,3307.4,0.001]
[1762534872781,4.68837338,3307.8,3307.4,0.001]
[1762534872980,5.88043581,3307.8,3307.4,0.001]
[1762534873179,5.53471157,3307.8,3307.4,0.001]
[1762534873601,5.94021557,3307.8,3307.4,0.001]
[1762534873840,6.36113581,3307.8,3307.4,0.001]
[1762534874050,5.94021557,3307.8,3307.4,0.001]
[1762534876345,5.53471157,3307.8,3307.4,0.001]
[1762534878161,6.36113581,3307.8,3307.4,0.001]
[1762534878451,4.68864759,3307.5,3307.4,0.001]
[1762534878652,4.28314359,3307.5,3307.4,0.001]
[1762534878840,5.18459717,3307.5,3307.4,0.001]
[1762534879235,4.76384359,3307.5,3307.4,0.001]
[1762534879406,4.28314359,3307.5,3307.4,0.001]
[1762534879817,3.02322667,3307.8,3307.4,0.001]
[1762534880150,3.0224264,3308.6,3307.5,0.4606]
[1762534880319,3.0224264,3308.6,3307.4,0.001]
[1762534880320,3.02322389,3307.8,3307.4,0.001]
[1762534880524,0.4807,3308.5,3307.4,0.001]
[1762534880722,0.1635,3308.8,3307.9,3.0230406]
[1762534880950,0.1635,3308.8,3307.5,3.48402802]
[1762534881253,1.259712,3308.6,3307.6,0.3485028]
[1762534881563,0.1635,3308.8,3307.5,0.4606]
[1762534881723,0.1635,3308.8,3307.5,3.48402004]
[1762534881925,3.02312646,3307.9,3307.4,0.001]
[1762534882129,3.02343159,3307.5,3307.4,0.001]
[1762534882514,4.28314359,3307.5,3307.4,0.001]
[1762534882852,5.18459717,3307.5,3307.4,0.001]
[1762534883227,5.59010117,3307.5,3307.4,0.001]
[1762534883427,3.42920985,3307.2,3307.1,1e-08]
[1762534883609,6.3591703,3307.2,3307.1,1e-08]
[1762534883813,6.40969799,3307.2,3307.1,0.00100001]
[1762534885462,5.98894441,3307.2,3307.1,0.00100001]
[1762534885827,5.50824441,3307.2,3307.1,0.00100001]
[1762534886024,5.52186901,3307.2,3307.1,0.00100001]
[1762534886442,6.40807301,3307.2,3307.1,0.00100001]
[1762534887180,6.40807301,3307.2,3304.0,3.22267003]
[1762534887181,3.02551331,3305.3,3304.0,0.1961]
[1762534887330,0.39156751,3305.2,3304.5,0.4606]
[1762534887533,0.39156751,3305.2,3304.6,3.02607624]
[1762534887837,0.405504,3306.1,3305.1,0.4656]
[1762534887838,1.259712,3306.1,3305.1,0.4656]
[1762534888046,3.02452892,3306.3,3305.8,0.1961]
[1762534888268,3.02459625,3306.3,3305.8,0.1961]
[1762534888443,3.02489488,3305.9,3305.8,0.1961]
[1762534888780,3.41609969,3306.3,3305.8,0.1961]
[1762534888957,3.02477419,3306.1,3305.8,0.1961]
[1762534889162,0.39156751,3306.1,3305.4,0.4606]
[1762534889471,3.02509481,3305.7,3305.1,0.005]
[1762534889677,3.02509481,3305.7,3305.2,0.4606]
[1762534889882,0.405504,3306.5,3305.2,0.4606]
[1762534890080,3.02523924,3305.6,3305.2,0.4606]
[1762534890227,1.259712,3306.4,3305.2,0.4606]
[1762534890427,3.02523202,3305.6,3305.2,0.4606]
[1762534890671,0.2145916,3306.3,3305.2,0.4606]
[1762534891164,0.405504,3306.5,3305.2,0.4606]
[1762534891332,3.02522848,3305.6,3305.2,0.4606]
[1762534891527,1.259712,3306.3,3305.2,0.4606]
[1762534891730,3.02544398,3305.3,3305.1,0.005]
[1762534891932,3.02553551,3305.2,3305.1,0.005]
[1762534892469,4.28524751,3305.2,3305.1,0.005]
[1762534892831,0.1823,3305.9,3305.1,0.2019]
[1762534893030,3.02551203,3305.3,3305.1,0.2019]
[1762534893264,3.02551386,3305.3,3305.1,0.2019]
[1762534893463,0.405504,3306.1,3305.2,0.4911]
[1762534893661,0.405504,3306.1,3305.1,0.2019]
[1762534893662,0.79644532,3306.1,3305.1,0.2019]
[1762534893862,3.02489488,3305.9,3305.1,0.2019]
[1762534894071,1.259712,3306.0,3305.1,0.2019]
[1762534894244,3.02518565,3305.6,3305.1,0.693]
[1762534894441,3.02527237,3305.5,3305.1,0.693]
[1762534894846,0.50809174,3305.9,3305.2,0.4911]
[1762534895073,1.259712,3305.7,3305.2,0.4911]
[1762534895287,3.0253129,3305.5,3305.2,0.4911]
[1762534895459,0.17678037,3305.7,3305.1,0.2019]
[1762534895831,3.02505803,3305.8,3305.2,0.4911]
[1762534896043,3.02517853,3305.6,3305.1,0.2019]
[1762534896238,3.02498638,3305.8,3305.1,0.2019]
[1762534896482,3.02553551,3305.2,3305.1,0.005]
[1762534896871,3.63063275,3305.2,3305.1,0.005]
[1762534897175,1.259712,3305.3,3305.1,0.2019]
[1762534897482,1.259712,3305.4,3305.1,0.2019]
[1762534897782,0.4793,3306.6,3305.1,0.693]
[1762534897981,3.02517379,3305.6,3305.1,100.693]
[1762534898194,1.259712,3305.9,3305.2,0.4911]
[1762534898353,3.02477004,3306.1,3305.5,3.02517094]
[1762534898559,3.02483328,3306.0,3305.2,0.4911]
[1762534898789,0.1913,3306.8,3305.3,0.4911]
[1762534898960,3.02429031,3306.6,3305.3,0.4911]
[1762534899136,3.02486041,3306.0,3305.3,0.4911]
[1762534899344,1.259712,3306.2,3305.3,0.4911]
[1762534899566,3.02526463,3305.5,3305.3,0.4911]
[1762534899771,3.02473056,3306.1,3305.3,0.4911]
[1762534899977,3.02507985,3305.7,3305.1,100.2019]
[1762534900139,3.02462041,3306.2,3305.1,100.2019]
[1762534900488,0.405504,3306.0,3305.1,100.006]
[1762534900901,3.86567265,3306.1,3305.1,100.006]
[1762534900902,0.35039204,3306.1,3305.2,0.4522]
[1762534901114,0.405504,3306.0,3305.1,100.006]
[1762534901313,3.02553551,3305.2,3305.1,100.006]
[1762534901900,3.43215614,3305.2,3305.1,100.006]
[1762534902077,3.02553551,3305.2,3305.1,100.006]
[1762534902258,0.32295709,3306.3,3305.1,100.6546]
[1762534902462,0.4905,3306.7,3305.2,0.4522]
[1762534902663,1.259712,3306.2,3305.2,0.4522]
[1762534902912,3.02553551,3305.2,3305.1,100.2024]
[1762534903721,3.02532058,3305.5,3305.1,100.6546]
[1762534903881,3.02553551,3305.2,3305.1,100.2024]
[1762534904210,3.02553551,3305.2,3305.1,100.006]
[1762534905417,4.28552216,3304.9,3304.8,0.001]
[1762534905617,5.20993261,3304.9,3304.8,0.001]
[1762534905823,5.70043261,3304.9,3304.8,0.001]
[1762534905971,3.43158885,3304.6,3304.5,0.001]
[1762534906173,5.01479438,3304.6,3304.5,0.001]
[1762534906375,4.28616318,3304.2,3304.1,0.005]
[1762534906678,4.77666318,3304.2,3304.1,0.005]
[1762534907266,4.69166718,3304.2,3304.1,0.005]
[1762534907577,1.665216,3304.2,3304.1,0.005]
[1762534907773,1.259712,3304.2,3304.1,0.005]
[1762534908099,0.405504,3304.8,3304.1,0.4572]
[1762534908273,1.259712,3305.0,3304.1,0.4572]
[1762534908480,3.02609236,3304.6,3304.1,0.005]
[1762534908775,0.6827,3305.3,3304.1,0.005]
[1762534908776,1.259712,3305.1,3304.1,0.005]
[1762534908999,0.1922,3305.3,3304.1,0.4572]
[1762534909210,3.02502166,3305.8,3304.7,3.02598432]
[1762534909409,3.02430025,3306.6,3304.1,0.4572]
[1762534909613,0.4905,3306.7,3304.8,3.02588877]
[1762534909831,3.02453918,3306.3,3305.0,3.02571387]
[1762534910109,0.37058961,3306.6,3305.1,0.03025627]
[1762534910273,0.005,3306.9,3304.8,0.4522]
[1762534910473,0.005,3306.9,3304.9,1.7421701]
[1762534910674,0.005,3306.9,3305.4,3.02535245]
[1762534910882,0.005,3306.9,3305.2,0.405504]
[1762534910883,0.005,3306.9,3306.4,3.02437181]
[1762534911103,0.005,3306.9,3305.5,0.4522]
[1762534911304,0.005,3306.9,3306.8,0.1964]
[1762534911494,0.005,3306.9,3306.8,3.22047161]
[1762534911699,0.005,3306.9,3306.8,3.67267161]
[1762534912112,0.005,3306.9,3306.8,0.1964]
[1762534912336,0.005,3306.9,3306.8,3.67267161]
[1762534913935,0.005,3306.9,3306.8,0.6486]
[1762534914324,0.005,3306.9,3306.8,3.67267161]
[1762534914635,0.005,3307.9,3306.8,1.31828511]
[1762534914835,0.005,3307.9,3307.8,0.1964]
[1762534915346,0.005,3307.9,3307.8,0.6486]
[1762534916117,0.005,3307.9,3307.8,3.67175738]
[1762534916621,0.002,3309.2,3308.7,3.02233505]
[1762534916822,0.002,3309.2,3308.5,0.1964]
[1762534917044,0.002,3309.2,3308.6,0.4522]
[1762534917549,3.02717568,3308.9,3308.5,0.1964]
[1762534917753,0.30291757,3308.7,3308.0,0.4522]
[1762534918055,0.30291757,3308.7,3307.8,0.1964]
[1762534918204,3.02257695,3308.5,3307.8,0.1964]
[1762534918507,0.002,3308.8,3307.8,3.2195473]
[1762534918508,1.261712,3308.8,3307.8,3.2195473]
[1762534918700,0.002,3308.8,3307.9,0.4522]
[1762534918951,1.261712,3308.8,3307.9,0.4522]
[1762534919135,0.002,3308.8,3307.9,3.47526533]
[1762534919305,0.002,3308.8,3308.0,3.02291184]
[1762534919506,0.42183937,3308.8,3308.0,3.47511609]
[1762534919698,0.42183937,3308.8,3308.1,3.02286427]
[1762534919935,1.264712,3308.9,3308.2,3.02279185]
[1762534919936,0.005,3308.9,3308.2,3.02279185]
[1762534920103,0.005,3308.9,3308.2,0.4522]
[1762534920536,3.02251084,3308.6,3307.8,0.6486]
[1762534920723,0.002,3308.3,3307.8,0.6486]
[1762534920924,0.002,3308.3,3307.8,0.67883157]
[1762534921125,0.002,3308.3,3307.9,0.4522]
[1762534921363,3.02281019,3308.2,3307.8,0.1964]
[1762534921639,0.002,3308.3,3307.8,0.1964]
[1762534921640,0.30248102,3308.1,3307.9,3.02300066]
[1762534921812,0.002,3308.3,3308.0,0.4522]
[1762534922141,0.002,3308.3,3307.6,0.4958]
[1762534922456,0.405504,3308.2,3306.9,0.4958]
[1762534922663,1.259712,3308.0,3306.5,0.1862]
[1762534922821,1.261712,3308.3,3307.1,3.02379728]
[1762534923024,0.002,3308.3,3308.2,3.02279185]
[1762534923339,0.002,3308.6,3308.5,3.02251775]
[1762534923519,0.005,3308.9,3308.8,3.02224371]
[1762534923864,0.005,3308.9,3308.6,0.4958]
[1762534924040,0.005,3308.9,3308.1,0.4958]
[1762534924350,3.02232998,3308.8,3307.0,0.4958]
[1762534924503,0.405504,3308.6,3307.0,0.4958]
[1762534924954,3.02275359,3308.3,3307.3,3.02353702]
[1762534925240,3.022812,3308.2,3307.3,3.02353702]
[1762534925449,3.02717986,3308.9,3308.0,3.02296873]
[1762534925651,0.60493144,3308.8,3308.0,3.02291686]
[1762534925817,1.259712,3308.7,3307.9,0.4958]
[1762534926020,0.1803,3308.7,3306.9,0.4958]
[1762534926220,3.02717014,3308.9,3307.9,3.0229814]
[1762534926447,0.005,3308.9,3308.0,0.03022974]
[1762534926668,0.005,3308.9,3308.2,3.02276368]
[1762534926944,0.005,3308.9,3308.3,3.02269111]
[1762534927149,0.005,3308.9,3307.3,0.405504]
[1762534927349,0.005,3308.9,3308.8,3.02224371]
[1762534927946,0.005,3308.9,3308.8,3.51804371]
[1762534928363,0.005,3308.9,3308.8,4.17510484]
[1762534928563,0.005,3308.9,3308.8,4.32550484]
[1762534928944,0.005,3308.9,3308.8,3.66844371]
[1762534929111,0.005,3308.9,3308.8,0.4958]
[1762534929319,0.005,3308.9,3308.8,3.51804371]
[1762534929711,0.005,3308.9,3308.6,0.1504]
[1762534929912,0.005,3308.9,3307.3,3.02357135]
[1762534930166,0.005,3308.9,3308.4,3.02251912]
[1762534930329,0.005,3308.9,3308.1,3.02281484]
[1762534930532,0.005,3308.9,3308.2,3.02273214]
[1762534930738,0.005,3308.9,3308.1,3.02282196]
[1762534931045,0.005,3308.9,3307.7,0.4958]
[1762534931232,0.005,3308.9,3308.2,3.02270697]
[1762534931428,3.49642676,3308.9,3308.0,3.02289945]
[1762534931822,0.47421938,3308.9,3307.8,0.4958]
[1762534932021,0.47421938,3308.9,3308.1,3.02282349]
[1762534932317,0.005,3308.9,3308.0,3.0229746]
[1762534932522,1.264712,3308.9,3308.1,3.02283901]
[1762534932968,0.005,3308.9,3307.9,0.4958]
[1762534933263,0.005,3308.9,3308.3,3.02269313]
[1762534933557,3.19423822,3308.9,3308.0,3.02297173]
[1762534933762,0.1720216,3308.9,3308.0,3.02297173]
[1762534933974,0.1720216,3308.9,3307.9,0.4958]
[1762534934124,0.005,3308.9,3308.3,3.02262654]
[1762534934329,0.005,3308.9,3308.2,3.02275234]
[1762534934860,0.1853,3308.9,3308.1,0.1862]
[1762534935067,0.649,3308.9,3307.7,0.682]
[1762534935274,3.38936066,3308.8,3307.9,3.02303569]
[1762534935585,0.36710616,3308.8,3307.7,0.682]
[1762534935883,1.259712,3308.5,3307.7,3.20942152]
[1762534936063,3.48596002,3308.8,3307.7,3.20942152]
[1762534936064,0.4637,3308.8,3307.8,3.02311256]
[1762534936386,0.405504,3308.6,3307.3,0.4958]
[1762534936542,1.665216,3308.6,3306.8,0.6922]
[1762534936866,3.02321558,3307.8,3306.8,3.71626241]
[1762534937069,1.259712,3308.0,3307.3,3.02360493]
[1762534937226,4.00135567,3308.5,3307.5,3.02343159]
[1762534937423,0.97882927,3308.5,3307.6,3.02331832]
[1762534937768,3.48576367,3309.0,3307.7,3.02324878]
[1762534938059,3.02235722,3308.7,3307.9,3.02300156]
[1762534938367,3.02241936,3308.7,3307.9,3.02301222]
[1762534938537,0.007,3308.9,3308.0,3.0229746]
[1762534938738,0.007,3308.9,3308.0,0.84767746]
[1762534938939,0.007,3308.9,3308.8,3.02224371]
[1762534939342,0.007,3308.9,3308.8,3.54826614]
[1762534939541,0.007,3308.9,3308.8,3.66844371]
[1762534941484,0.002,3309.2,3309.1,3.02196971]
[1762534941651,0.002,3309.2,3309.1,3.20816971]
[1762534941982,0.002,3309.2,3309.1,4.37657386]
[1762534942185,0.002,3311.6,3309.3,3.02178708]
[1762534942493,0.002,3311.6,3311.5,3.01977955]
[1762534942785,0.002,3311.6,3311.5,3.20597955]
[1762534942950,0.002,3311.6,3311.4,3.01978492]
[1762534943274,0.002,3311.6,3310.6,0.6653]
[1762534943573,0.002,3311.6,3311.0,3.02016844]
[1762534943873,0.002,3311.6,3310.9,3.02024343]
[1762534944073,0.002,3311.6,3310.7,0.4958]
[1762534944376,0.002,3311.6,3311.2,3.01996852]
[1762534944674,0.002,3311.6,3311.3,3.01995709]
[1762534944837,0.002,3311.6,3310.9,3.02032679]
[1762534945034,0.002,3311.6,3311.5,3.01977955]
[1762534945233,0.002,3311.6,3311.5,3.51557955]
[1762534945680,0.002,3311.6,3310.9,0.36665268]
[1762534945840,0.002,3311.6,3310.9,0.6462]
[1762534946176,0.002,3311.6,3311.5,3.01977955]
[1762534946677,0.002,3311.6,3311.5,3.51557955]
[1762534946863,0.002,3311.6,3311.5,3.54577734]
[1762534947048,0.002,3311.6,3311.5,3.51557955]
[1762534947375,0.002,3311.6,3311.5,4.18417244]
[1762534947537,0.002,3311.6,3311.5,4.33457244]
[1762534947734,0.002,3311.6,3311.5,3.66597955]
[1762534949581,0.002,3312.0,3311.9,3.42491883]
[1762534949743,0.005,3312.9,3312.8,3.01859454]
[1762534950141,0.005,3312.9,3312.4,0.1504]
[1762534950346,0.005,3312.9,3312.8,3.01859454]
[1762534950574,0.005,3312.9,3312.8,3.51439454]
[1762534951101,0.005,3312.9,3312.5,0.1504]
[1762534951246,0.005,3312.9,3312.8,3.01859454]
[1762534951649,0.005,3312.9,3312.8,5.42741553]
[1762534951872,0.005,3312.9,3312.8,5.57781553]
[1762534952548,0.005,3312.9,3312.8,5.40121553]
[1762534952777,0.005,3312.9,3312.8,0.1504]
[1762534952982,0.005,3312.9,3312.8,3.01859454]
[1762534953288,0.005,3312.9,3312.8,3.48819454]
[1762534953584,0.005,3312.9,3312.8,3.16899454]
[1762534953889,0.005,3312.9,3312.8,3.01859454]
[1762534954194,0.005,3312.9,3312.8,3.48819454]
[1762534954343,0.005,3312.9,3312.8,3.01859454]
[1762534954742,0.005,3312.9,3312.6,3.16909513]
[1762534954743,0.005,3312.9,3312.6,0.1504]
[1762534954992,0.005,3312.9,3312.8,3.01859454]
[1762534955298,0.005,3312.9,3312.8,3.48819454]
[1762534955593,0.005,3312.9,3311.3,3.189]
[1762534955594,0.4885,3312.9,3311.6,0.19]
[1762534955804,3.01880965,3312.6,3311.6,0.19]
[1762534955960,0.4885,3312.9,3312.0,3.0193102]
[1762534956164,0.4885,3312.9,3311.6,0.19]
[1762534956368,0.4885,3312.9,3312.1,3.01922447]
[1762534956696,0.4885,3312.9,3311.6,0.6369536]
[1762534956844,0.005,3312.9,3311.7,0.49979597]
[1762534957049,0.005,3312.9,3312.0,3.01932367]
[1762534957245,0.005,3312.9,3312.6,3.01870955]
[1762534957883,0.007,3312.9,3312.8,3.01859454]
[1762534958679,0.007,3312.9,3312.2,0.4696]
[1762534958951,0.007,3312.9,3311.7,1.729312]
[1762534959158,0.007,3312.9,3312.0,3.0192391]
[1762534959354,0.007,3312.9,3312.2,3.01908715]
[1762534959584,0.4835,3312.8,3311.6,0.19]
[1762534959805,0.35090621,3312.7,3311.6,0.19]
[1762534960109,0.35090621,3312.7,3311.5,1.259712]
[1762534960303,0.4835,3312.8,3311.5,1.729312]
[1762534960455,3.50211945,3312.8,3312.0,3.01930691]
[1762534960655,0.4835,3312.8,3311.5,0.4696]
[1762534960970,0.007,3312.9,3311.6,0.03019688]
[1762534961164,0.007,3312.9,3311.8,3.01946726]
[1762534961377,0.007,3312.9,3312.1,3.01914399]
[1762534961557,1.259712,3312.6,3311.2,3.21004363]
[1762534961757,0.4529,3312.8,3311.2,3.21004363]
[1762534961953,1.712612,3312.8,3311.8,3.01950054]
[1762534962189,1.712612,3312.8,3311.5,3.01975666]
[1762534962190,0.47381251,3312.7,3311.3,0.4569]
[1762534962361,0.47381251,3312.7,3311.4,3.01987074]
[1762534962564,0.4529,3312.8,3312.3,3.01898941]
[1762534962807,3.47150006,3312.8,3312.0,3.01927035]
[1762534962958,1.259712,3312.7,3311.5,3.01973385]
[1762534963307,4.73137032,3312.7,3311.9,3.01938753]
[1762534963457,0.92603703,3312.6,3311.9,3.01938753]
[1762534963657,0.92603703,3312.6,3311.3,3.4768145]
[1762534963957,0.007,3312.9,3312.2,3.01911903]
[1762534963958,1.266712,3312.9,3312.2,3.01911903]
[1762534964400,3.47841935,3312.9,3312.1,3.01920325]
[1762534964580,0.007,3312.9,3311.8,0.4569]
[1762534964785,0.007,3312.9,3312.4,3.01889582]
[1762534965098,0.007,3312.9,3312.5,3.01879744]
[1762534965400,0.007,3312.9,3312.0,0.4569]
[1762534965567,0.007,3312.9,3312.5,3.01878352]
[1762534965768,0.007,3312.9,3312.6,3.01869323]
[1762534965981,0.007,3312.9,3312.1,3.01923251]
[1762534965982,0.007,3312.9,3312.7,3.01865275]
[1762534966400,0.007,3312.9,3312.8,3.01859454]
[1762534967699,0.007,3312.9,3312.8,3.50568048]
[1762534967907,0.007,3312.9,3312.8,3.47549454]
[1762534968797,0.007,3312.9,3312.8,0.6073]
[1762534968996,0.007,3312.9,3312.5,0.1504]
[1762534969200,0.007,3312.9,3312.6,3.01873967]
[1762534969500,0.007,3312.9,3312.4,0.1504]
[1762534969824,0.1896,3312.9,3311.8,0.4569]
[1762534969974,0.4529,3312.8,3311.9,3.01939123]
[1762534970178,0.4529,3312.8,3311.3,3.01996194]
[1762534970377,0.4529,3312.8,3311.4,3.01987074]
[1762534970378,3.47158009,3312.8,3311.4,3.01987074]
[1762534970602,3.01870699,3312.7,3311.9,3.01935734]
[1762534970897,0.66797208,3312.7,3312.0,3.01932014]
[1762534971144,0.4529,3312.8,3312.0,3.01932014]
[1762534971411,3.01878641,3312.6,3311.9,3.01934409]
[1762534971614,0.4529,3312.8,3311.9,3.01934409]
[1762534972018,0.4529,3312.8,3311.3,0.4569]
[1762534972221,3.4715111,3312.8,3312.0,3.01925426]
[1762534972380,0.36611111,3312.7,3311.4,1.716612]
[1762534972575,3.4716667,3312.7,3311.9,3.01938247]
[1762534972777,0.4529,3312.7,3312.2,3.01912586]
[1762534972982,1.449312,3312.9,3312.1,3.01916091]
[1762534972983,3.20811604,3312.9,3312.1,3.01916091]
[1762534973191,0.85753407,3312.9,3311.6,0.4569]
[1762534973403,3.01883491,3312.6,3311.2,1.906612]
[1762534973612,3.01883491,3312.6,3311.8,3.01944395]
[1762534973778,0.75478349,3312.5,3311.2,0.6469]
[1762534973974,3.01901122,3312.4,3311.6,3.01963247]
[1762534974168,3.01901122,3312.4,3311.7,3.01955011]
[1762534974169,0.4529,3312.4,3311.7,3.01955011]
[1762534974514,0.4529,3312.4,3311.5,3.01972762]
[1762534974668,0.4529,3312.4,3311.4,3.01981083]
[1762534975105,1.712612,3312.4,3311.2,0.19]
[1762534975302,3.01910144,3312.3,3311.2,0.19]
[1762534975501,0.6241612,3312.4,3311.3,0.4569]
[1762534975741,1.259712,3312.5,3312.0,0.001]
[1762534976140,0.4529,3312.4,3312.0,0.001]
[1762534976310,3.01878474,3312.6,3312.0,0.001]
[1762534976505,3.02061376,3312.8,3312.0,0.001]
[1762534976506,0.002,3312.8,3312.0,0.001]
[1762534976752,0.002,3312.8,3312.0,0.4579]
[1762534976925,0.002,3312.8,3312.1,0.37791921]
[1762534977242,0.002,3312.8,3312.2,3.01914135]
[1762534977442,0.002,3312.8,3312.7,3.01868566]
[1762534977605,0.002,3312.8,3312.7,3.53257251]
[1762534977805,0.002,3312.8,3312.7,3.01868566]
[1762534978044,0.002,3312.8,3312.5,3.01886003]
[1762534978343,0.002,3312.8,3312.4,0.4569]
[1762534978344,0.002,3312.8,3312.6,3.01871905]
[1762534978542,0.002,3312.8,3312.7,3.50238566]
[1762534979006,0.002,3312.8,3312.4,0.4569]
[1762534979217,0.002,3312.8,3312.7,3.01868566]
[1762534979650,0.002,3312.8,3312.7,3.50238566]
[1762534979845,0.002,3312.8,3312.7,3.95928566]
[1762534980010,0.002,3312.8,3312.7,5.13955731]
[1762534980343,0.002,3312.8,3312.7,5.10937046]
[1762534980908,0.002,3312.8,3312.7,5.13955731]
[1762534981110,0.002,3312.8,3312.7,6.36908246]
[1762534981312,1e-08,3312.9,3312.8,12.70465024]
[1762534981506,1e-08,3312.9,3312.8,6.41560673]
[1762534982627,1e-08,3312.9,3312.8,4.21529473]
[1762534982827,1e-08,3312.9,3312.8,5.15079473]
[1762534983028,1e-08,3312.9,3312.8,5.18098067]
[1762534983337,1e-08,3312.9,3312.1,1.743412]
[1762534983566,1e-08,3312.9,3312.0,0.001]
[1762534983737,0.405504,3312.7,3312.0,0.001]
[1762534984277,3.01923251,3312.1,3312.0,0.001]
[1762534984454,4.98637176,3312.1,3312.0,0.001]
[1762534984766,5.48077176,3312.1,3312.0,0.001]
[1762534985065,2.46153925,3312.1,3312.0,0.001]
[1762534985265,1.754112,3312.1,3312.0,0.001]
[1762534985480,1.259712,3312.1,3312.0,0.001]
[1762534985631,3.01897935,3312.4,3312.0,0.001]
[1762534985823,0.4944,3312.4,3312.0,0.001]
[1762534986044,0.4944,3312.3,3312.0,0.001]